Cogmind - Beta 10.2 @@@ ROGUE MODE // 2020.11.26 @ 12:04:26 // Halloween2020/ForbiddenLore Player: WayneKnight Result: Destroyed by C-40 Crusher with Compactor Performance ------------- Evolutions (3) 1500 Regions Visited (13) 2600 Robots Destroyed (201) 1005 Value Destroyed (7139) 7139 Prototype IDs (39) 780 Alien Tech Used (0) 0 Bonus (2319) 2319 TOTAL SCORE: 15343 Bonus ------- High Alert Combat Kills 174 Follower Combat Kills 634 Entered Garrisons 400 Used RIF Installer 1000 Aligned with FarCom 300 Friendly Fire -189 Cogmind --------- Core Integrity 0/700 Matter 298/300 Energy 99/100 System Corruption 16% Temperature Cool (0) Movement Core (50) Location -7/Waste Parts ------- > --- POWER (1) -------- (None) > --- PROPULSION (3) --- (None) > --- UTILITY (6) ------ (None) > --- WEAPON (3) ------- (None) > --- INVENTORY (4) ---- Damper Plating Peak State ------------ > --- POWER ------------ Improved Ion Engine > --- PROPULSION ------- Armored Huge Wheel Cooled Airjet > --- UTILITY ---------- High-capacity Storage Unit High-capacity Storage Unit High-capacity Storage Unit Experimental Sensor Array Advanced Signal Interpreter Makeshift Hacking Suite > --- WEAPON ----------- Enhanced Autogun Flak Gun Chainsword > --- INVENTORY -------- Light Deuterium Engine Light Treads Light Treads Armored Treads Advanced Treads Large Storage Unit Large Storage Unit High-capacity Matter Pod Cloak of Protection Improved Medium Armor Plating Medium Insulated Plating Hacking Suite Hacking Suite System Shield Relay Coupler [NC] System Backup Module Heavy Assault Rifle Heavy Assault Rifle Improved Assault Rifle Gauss Rifle Flak Cannon AWS/Autocannon Advanced EMP Blaster Rocket Launcher Mini Grenade Launcher Remote Datajack [Rating: 53] Favorites ----------- Power Improved Ion Engine Engine Improved Ion Engine Power Core Micro Nuclear Core Propulsion Light Treads Treads Light Treads Leg Aluminum Leg Wheel Armored Huge Wheel Hover Unit Cooled Airjet Utility High-capacity Storage Unit Device Experimental Sensor Array Storage High-capacity Storage Unit Processor Advanced Signal Interpreter Hackware Makeshift Hacking Suite Protection Hardened Light Armor Plating Weapon Heavy Assault Rifle Energy Gun EM Shotgun Ballistic Gun Heavy Assault Rifle Ballistic Cannon Improved Light Cannon Launcher Grenade Launcher Impact Weapon Heavy Hammer Slashing Weapon Chainsword Build | -11 -10 -10 -9 -9 -9 -8 -8 -8 -8 -8 -8 -7 -7 ------- Run | Scr Mat Min Mat Min Exi Min Mat Gar Mat Sto Gar Fac Was Slots Evolved 6 | . . . 2 . . . 2 . . . . 2 . Power . | . . . . . . . . . . . . . . Propulsion 1 | . . . 1 . . . . . . . . . . Utility 4 | . . . 1 . . . 1 . . . . 2 . Weapon 1 | . . . . . . . 1 . . . . . . Parts Attached 208 | . 8 13 27 1 4 6 11 7 30 16 7 73 5 Power 16 | . 1 2 2 . . 1 1 1 3 2 . 3 . Engine 14 | . 1 2 2 . . 1 1 1 3 2 . 1 . Core 2 | . . . . . . . . . . . . 2 . Reactor . | . . . . . . . . . . . . . . Propulsion 46 | . 3 1 9 1 . 3 5 1 12 3 1 7 . Treads 39 | . 2 1 8 1 . 3 4 1 11 3 1 4 . Leg . | . . . . . . . . . . . . . . Wheel 6 | . 1 . 1 . . . 1 . 1 . . 2 . Hover 1 | . . . . . . . . . . . . 1 . Flight . | . . . . . . . . . . . . . . Utility 61 | . 2 . 6 . 4 . 1 1 6 2 2 35 2 Device 20 | . . . . . . . . . 1 . . 18 1 Storage 12 | . 2 . 3 . 4 . . . . . . 2 1 Processor 2 | . . . 1 . . . . . . . . 1 . Hackware 2 | . . . . . . . . . . . 1 1 . Protection 25 | . . . 2 . . . 1 1 5 2 1 13 . Artifact . | . . . . . . . . . . . . . . Weapon 85 | . 2 10 10 . . 2 4 4 9 9 4 28 3 Energy Gun 12 | . 2 5 3 . . . 1 1 . . . . . Energy Cannon . | . . . . . . . . . . . . . . Ballistic Gun 36 | . . . 4 . . 2 2 1 7 7 2 11 . Ballistic Cannon 8 | . . . 2 . . . 1 1 2 . . 2 . Launcher 12 | . . 2 1 . . . . 1 . 1 2 2 3 Special Weapon . | . . . . . . . . . . . . . . Impact Weapon 3 | . . 3 . . . . . . . . . . . Slashing Weapon 14 | . . . . . . . . . . 1 . 13 . Piercing Weapon . | . . . . . . . . . . . . . . Special Melee Weapon . | . . . . . . . . . . . . . . Unidentified Prototypes 3 | . . . . . . . . . 1 1 . 1 . Parts Lost 32 | . . 2 4 . . 4 1 4 6 3 1 1 6 Power 5 | . . 1 . . . 1 . 1 . 1 . . 1 Propulsion 10 | . . . 2 . . 3 . . 2 1 1 . 1 Utility 7 | . . . . . . . . 1 2 . . 1 3 Weapon 10 | . . 1 2 . . . 1 2 2 1 . . 1 Highest Loss Streak 6 | . . 1 4 . . 2 1 4 2 2 1 1 6 Average Slot Usage (%) 96 | . 98 99 97 100 77 97 95 99 98 99 99 92 72 Engine 8 | . 14 14 11 11 11 11 9 9 9 8 9 5 6 Treads 21 | . 25 16 30 33 33 32 19 27 24 26 26 8 4 Wheel 2 | . 2 11 . . . . 3 . 1 . . 6 5 Device 2 | . . . . . . . . . . . . 9 6 Storage 27 | . 26 28 29 33 33 33 27 27 27 27 27 23 26 Processor 2 | . . . 1 . . . . . . . . 6 6 Protection 4 | . . . 2 . . . 9 8 8 9 8 1 . Energy Gun 1 | . 14 18 3 . . . 1 . . . . . . Ballistic Gun 18 | . 14 . 7 22 . 20 20 17 20 26 26 19 . Ballistic Cannon 2 | . . . 10 . . . 5 8 6 . . . . Naked Turns 13 | . . . . . . . . . . . . . 13 Heaviest Build 134 | 11 42 43 81 77 103 111 120 123 124 121 117 128 134 Greatest Support 64 | 20 40 40 63 63 63 63 62 62 64 64 62 60 28 Greatest Overweight (x) 32 | . 3 3 3 1 1 1 5 2 6 1 1 5 32 Average Overweight (x) 2 | . . 2 . 1 1 1 2 1 1 1 1 3 3 Largest Inventory Capacity 28 | 6 16 16 24 24 28 28 28 28 28 28 28 28 28 Average Capacity 25 | 6 15 16 21 24 27 28 28 28 28 28 28 28 23 Most Carried 28 | 6 16 16 24 24 28 28 28 28 28 28 28 28 27 Average Carried 25 | 6 12 15 20 23 25 26 26 26 27 27 27 27 21 Final Capacity 28 | 6 16 16 24 24 28 28 28 28 28 28 28 28 4 Final Carried 28 | 6 16 15 24 24 28 24 28 27 26 28 27 27 3 Class Distribution -------------------- 48% | Hauler-Skirmisher 30% | Hauler-Mutant 10% | Mutant 3% | Commander-Skirmisher Dominant Class ---------------- Mutant | -10/Materials Mutant | -10/Mines Hauler-Mutant | -9/Materials Hauler-Mutant | -9/Mines Hauler-Mutant | -9/Exiles Hauler-Mutant | -8/Mines Hauler-Skirmisher | -8/Materials Hauler-Skirmisher | -8/Garrison Hauler-Skirmisher | -8/Materials Hauler-Skirmisher | -8/Storage Hauler-Skirmisher | -8/Garrison Hauler-Skirmisher | -7/Factory Hauler-Mutant | -7/Waste Resources | -11 -10 -10 -9 -9 -9 -8 -8 -8 -8 -8 -8 -7 -7 ----------- Run | Scr Mat Min Mat Min Exi Min Mat Gar Mat Sto Gar Fac Was Matter Collected 6047 | 198 143 334 720 120 . 354 349 449 1144 440 227 1401 168 Remotely . | . . . . . . . . . . . . . . Salvage Created 7657 | 72 171 259 1201 202 . 543 472 491 1445 681 251 1398 471 Parts 457 | 2 20 20 85 12 . 37 31 30 70 39 8 100 3 Haulers Intercepted . | . . . . . . . . . . . . . . Recyclers Shooed 1 | . . . . . . . . . 1 . . . . Parts Field Recycled . | . . . . . . . . . . . . . . Retrieved Matter . | . . . . . . . . . . . . . . Parts Self-Destructed . | . . . . . . . . . . . . . . Prevented . | . . . . . . . . . . . . . . Kills | -11 -10 -10 -9 -9 -9 -8 -8 -8 -8 -8 -8 -7 -7 ------- Run | Scr Mat Min Mat Min Exi Min Mat Gar Mat Sto Gar Fac Was Combat Hostiles Destroyed 185 | . 9 13 30 5 . 15 9 18 34 16 6 28 2 Melee 4 | . . . . . . . . . . . . 4 . Guns 102 | . 8 5 12 5 . 15 5 6 12 9 3 22 . Cannons 48 | . . . 13 . . . 4 8 22 . . 1 . AOE 31 | . 1 8 5 . . . . 4 . 7 3 1 2 Classes Destroyed 17 | 1 2 3 5 . . 2 . . 1 1 . 1 1 Worker 3 | . 1 . . . . 1 1 . . . . . . Builder 2 | . . . 1 . . . . . 1 . . . . Tunneler 3 | . . 1 . 1 . . . . 1 . . . . Recycler 3 | 1 . . 1 . . . . . 1 . . . . Operator 2 | . . . 2 . . . . . . . . . . Watcher 3 | . . . . . . . . . 2 . . 1 . Swarmer 42 | . 9 6 3 . . 7 . 8 4 . 1 4 . Grunt 79 | . . 5 14 4 . 6 3 6 18 10 6 7 . Brawler 2 | . . . 1 . . . . . 1 . . . . Duelist 7 | . . . 2 . . . . 2 1 . . 2 . Protector 2 | . . . . . . . . . . 2 . . . Sentry 38 | . . . 10 1 . . 6 2 9 4 . 6 . Hunter 3 | . . . . . . 2 . . 1 . . . . Programmer 9 | . . . . . . . . . . . . 9 . Compactor 2 | . . . . . . . . . . . . . 2 Zionite 1 | . . . . . . 1 . . . . . . . Assembled 2 | . . 2 . . . . . . . . . . . Best Kill Streak 7 | 1 4 4 7 2 . 4 3 5 4 7 3 6 2 Combat Bots Only 7 | . 3 3 7 2 . 4 3 5 3 7 3 6 2 Max Kills in Single Turn 4 | 1 2 2 2 1 . 2 2 4 2 3 1 1 1 Gunslinging 1 | . 1 . . . . 1 . . 1 . . . . Exploded 4 | . 1 2 2 . . . . 4 . 3 1 1 1 Melee 1 | . . . . . . . . . . . . 1 . Uniques/NPCs Destroyed . | . . . . . . . . . . . . . . Combat | -11 -10 -10 -9 -9 -9 -8 -8 -8 -8 -8 -8 -7 -7 -------- Run | Scr Mat Min Mat Min Exi Min Mat Gar Mat Sto Gar Fac Was Damage Taken 10429 | . 272 443 988 159 . 885 447 1435 1791 936 442 1930 701 Core 1458 | . 42 58 106 51 . 107 61 90 146 63 8 216 510 Absorbed by Shields . | . . . . . . . . . . . . . . Core Remaining (%) 56 | 100 . 60 . . . 34 . . . . 33 . . Volleys Fired 481 | 2 23 23 73 16 . 48 28 46 98 34 17 66 7 Largest 3 | 2 2 2 2 2 . 2 3 3 3 3 3 3 3 Hottest 117 | 60 60 90 90 46 . 46 102 86 90 71 71 97 117 Shots Fired 1199 | 4 45 37 139 32 . 96 84 130 285 92 41 196 18 Gun 943 | 4 45 31 70 32 . 96 69 87 197 89 36 187 . Cannon 219 | . . . 67 . . . 15 42 88 . . 7 . Launcher 37 | . . 6 2 . . . . 1 . 3 5 2 18 Special . | . . . . . . . . . . . . . . Kinetic 1069 | 2 23 3 109 32 . 96 73 127 285 89 36 194 . Thermal 13 | . . . . . . . 11 2 . . . . . Explosive 37 | . . 6 2 . . . . 1 . 3 5 2 18 Electromagnetic 80 | 2 22 28 28 . . . . . . . . . . Robot Hit Streak 26 | 4 6 16 24 9 . 24 25 16 25 13 25 26 8 Robot Miss Streak 11 | . 3 2 3 2 . 2 3 3 9 4 1 11 2 Penetration Max . | . . . . . . . . . . . . . . Secondary Targets 14 | . 3 1 . 1 . 4 1 1 1 2 . . . Max Gunslinging Chain 1 | . 1 1 . 1 . 1 1 1 1 1 . . . Shots Hit Robots 861 | 4 23 31 106 22 . 74 63 88 208 67 31 130 14 Core Hits 423 | 2 10 28 52 10 . 33 20 33 103 35 15 76 6 Critical Hits 7 | . . . 1 . . . . . 1 2 . 3 . Critical Kills 1 | . . . 1 . . . . . . . . . . Critical Parts Destroyed 6 | . . . . . . . . . 1 2 . 3 . Melee Attacks 60 | . . 19 . . . . . . . 3 . 38 . Impact 19 | . . 19 . . . . . . . . . . . Slashing 41 | . . . . . . . . . . 3 . 38 . Piercing . | . . . . . . . . . . . . . . Sneak Attacks 2 | . . . . . . . . . . 1 . 1 . Combat Hostiles . | . . . . . . . . . . . . . . Follow-up Attacks . | . . . . . . . . . . . . . . Damage Inflicted 18216 | 48 282 903 2256 396 . 1079 1024 1584 3372 1702 986 2607 1977 Guns 9990 | 48 243 343 929 342 . 1053 803 819 1944 963 428 2075 . Cannons 3089 | . . . 860 . . . 221 541 1363 . . 104 . Explosions 4319 | . 28 549 389 . . . . 224 . 569 558 34 1968 Melee 491 | . . . . . . . . . . 106 . 385 . Ramming 327 | . 11 11 78 54 . 26 . . 65 64 . 9 9 Kinetic 12168 | 24 125 30 1459 342 . 1053 916 1342 3307 963 428 2179 . Thermal 362 | . 28 . 208 . . . 108 18 . . . . . Explosive 4083 | . . 549 181 . . . . 224 . 569 558 34 1968 Electromagnetic 785 | 24 118 313 330 . . . . . . . . . . Impact . | . . . . . . . . . . . . . . Slashing 491 | . . . . . . . . . . 106 . 385 . Piercing . | . . . . . . . . . . . . . . Highest Corruption 16 | . 1 4 1 1 1 1 . . 1 2 2 1 16 Average Corruption 1 | . 1 1 1 1 1 1 . . 1 1 2 1 9 Corruption Purged 1 | . . . . . . . . . . . . 1 . Effects 70 | . 2 7 8 6 5 6 . . 8 19 3 . 6 Message Errors 27 | . 1 2 5 3 2 1 . . 4 7 1 . 1 Matter Fused 5 | . . 3 . . . . . . . . . . 2 Heat Flow Errors 1 | . . . . . . . . . . . 1 . . Energy Discharges 12 | . . . . 2 2 4 . . 1 2 1 . . Data Loss (minor) 20 | . 1 2 3 1 1 1 . . 2 7 . . 2 Targeting Errors 3 | . . . . . . . . . 1 2 . . . Weapon Failures 2 | . . . . . . . . . . 1 . . 1 Overload Shots . | . . . . . . . . . . . . . . Overflow Damage 221 | . . 23 33 . . . . . 24 66 7 68 . Projectiles 40 | . . . 16 . . . . . 24 . . . . Explosions 47 | . . 23 17 . . . . . . . 7 . . Melee 134 | . . . . . . . . . . 66 . 68 . Knockbacks 36 | . . . 6 1 . . 3 8 11 . . 7 . Impact 2 | . . . 1 1 . . . . . . . . . Kinetic 31 | . . . 5 . . . 2 8 10 . . 6 . Secondary 3 | . . . . . . . 1 . 1 . . 1 . Self-Inflicted Damage 558 | . 4 40 147 . . . . 46 6 132 28 2 153 Shots 13 | . . 1 2 . . . . 1 . 3 1 . 5 Rammed 37 | . 2 2 9 7 . 5 . . 6 3 . 2 1 Targets Rammed 40 | . 2 2 9 8 . 6 . . 7 3 . 2 1 Kicked . | . . . . . . . . . . . . . . Crushed 3 | . . . . 1 . 1 . . 1 . . . . Highest Temperature 347 | . . 150 155 3 . 11 319 347 252 115 218 191 60 Average Temperature 59 | . . 47 28 1 . 2 83 113 68 30 41 41 24 Received Heat Transfer 3093 | . . 66 327 90 . 324 162 432 783 351 180 378 . Effects 7 | . . . . . . . . 7 . . . . . Shutdowns 1 | . . . . . . . . 1 . . . . . Energy Bleed 2 | . . . . . . . . 2 . . . . . Interference 4 | . . . . . . . . 4 . . . . . Siege Activations . | . . . . . . . . . . . . . . Robots Corrupted . | . . . . . . . . . . . . . . Combat Hostiles . | . . . . . . . . . . . . . . Parts Fried 1 | . . 1 . . . . . . . . . . . Impact Corruptions . | . . . . . . . . . . . . . . Robots Melted . | . . . . . . . . . . . . . . Combat Hostiles . | . . . . . . . . . . . . . . Parts Melted . | . . . . . . . . . . . . . . Heat Transferred 496 | . . . 200 . . . 259 37 . . . . . Parts Sabotaged . | . . . . . . . . . . . . . . Parts Stolen . | . . . . . . . . . . . . . . Parts Stripped . | . . . . . . . . . . . . . . Power Chain Reactions 3 | . 1 . 2 . . . . . . . . . . Missiles Intercepted . | . . . . . . . . . . . . . . Alert | -11 -10 -10 -9 -9 -9 -8 -8 -8 -8 -8 -8 -7 -7 ------- Run | Scr Mat Min Mat Min Exi Min Mat Gar Mat Sto Gar Fac Was Peak Influence 696 | 5 204 150 425 137 . 142 201 624 432 360 413 696 225 Initial 304 | . 3 . 5 126 . . 55 75 304 153 172 216 191 Average 180 | 3 55 58 179 69 . 37 74 419 284 183 322 163 206 Maximum Alert Level 2 | . 1 . 2 . . . 1 2 2 1 2 2 1 Low Security (%) 58 | 100 95 100 57 100 . 100 98 8 23 58 5 62 34 Level 1 36 | . 4 . 37 . . . 1 34 71 41 88 33 65 Level 2 4 | . . . 5 . . . . 56 4 . 6 3 . Level 3 . | . . . . . . . . . . . . . . Level 4 . | . . . . . . . . . . . . . . Level 5 . | . . . . . . . . . . . . . . High Security . | . . . . . . . . . . . . . . Max Security . | . . . . . . . . . . . . . . Squads Dispatched 32 | . . . 5 . . . . . 7 5 . 15 . Investigation 8 | . . . 2 . . . . . 5 . . 1 . Extermination 11 | . . . . . . . . . . . . 11 . Reinforcement 11 | . . . 3 . . . . . 2 3 . 3 . Assault 2 | . . . . . . . . . . 2 . . . Garrison . | . . . . . . . . . . . . . . Intercept . | . . . . . . . . . . . . . . Construction Impeded 4 | . . . 1 . . . . . 1 . . 2 . Haulers Reinforced . | . . . . . . . . . . . . . . Stealth | -11 -10 -10 -9 -9 -9 -8 -8 -8 -8 -8 -8 -7 -7 --------- Run | Scr Mat Min Mat Min Exi Min Mat Gar Mat Sto Gar Fac Was Distress Signals 13 | . . . 1 . . . 2 . 8 1 . 1 . Communications Jammed . | . . . . . . . . . . . . . . Distress Signals . | . . . . . . . . . . . . . . Times Spotted 308 | . 22 15 52 7 . 15 12 18 68 36 12 46 5 Peak Tracking Total 9 | . 4 4 6 2 . 3 3 7 5 8 3 9 4 Tactical Retreats 23 | . 1 2 2 . . 1 . 2 7 1 5 2 . Traps | -11 -10 -10 -9 -9 -9 -8 -8 -8 -8 -8 -8 -7 -7 ------- Run | Scr Mat Min Mat Min Exi Min Mat Gar Mat Sto Gar Fac Was Traps Triggered 22 | . 2 . 2 . . . . 5 2 2 2 7 . Indirectly . | . . . . . . . . . . . . . . Trap Hack Attempts . | . . . . . . . . . . . . . . Triggered . | . . . . . . . . . . . . . . Disarmed . | . . . . . . . . . . . . . . Reprogrammed . | . . . . . . . . . . . . . . Reused . | . . . . . . . . . . . . . . Traps Extracted . | . . . . . . . . . . . . . . Installed . | . . . . . . . . . . . . . . Triggered . | . . . . . . . . . . . . . . Machines | -11 -10 -10 -9 -9 -9 -8 -8 -8 -8 -8 -8 -7 -7 ---------- Run | Scr Mat Min Mat Min Exi Min Mat Gar Mat Sto Gar Fac Was Machines Disabled 4 | . . . 2 . . . . . . 2 . . . Max in Single Turn 2 | . . . 2 . . . . . . 1 . . . Garrison Access 4 | . . . . . . . . . . . . 4 . Machines Sabotaged . | . . . . . . . . . . . . . . Garrisons Compromised . | . . . . . . . . . . . . . . Overloaded Fab Kills . | . . . . . . . . . . . . . . Fab Network Shutdowns . | . . . . . . . . . . . . . . Hacking | -11 -10 -10 -9 -9 -9 -8 -8 -8 -8 -8 -8 -7 -7 --------- Run | Scr Mat Min Mat Min Exi Min Mat Gar Mat Sto Gar Fac Was Machines Accessed 74 | . 9 . 14 1 2 1 5 . 16 7 . 19 . Terminals 50 | . 8 . 10 . . 1 3 . 11 5 . 12 . Fabricators 1 | . . . . . . . . . . . . 1 . Repair Stations 7 | . . . 2 . . . 1 . 2 1 . 1 . Recycling Units 3 | . 1 . 1 . . . . . 1 . . . . Scanalyzers 4 | . . . 1 . . . . . 2 . . 1 . Garrison Access 6 | . . . . . . . 1 . . 1 . 4 . Total Hacks 222 | . 23 . 42 1 2 4 15 . 49 30 . 56 . Successful 121 | . 9 . 23 1 2 1 8 . 30 16 . 31 . Failed 98 | . 13 . 18 . . 3 7 . 19 14 . 24 . Catastrophic 17 | . 2 . 4 . . . . . 4 3 . 4 . Database Lockouts 3 | . 1 . 1 . . . . . . . . 1 . Manual 106 | . 15 . 22 . 1 4 4 . 20 16 . 24 . Terminals 160 | . 22 . 32 . . 4 10 . 34 21 . 37 . Fabricators 5 | . . . . . . . . . . . . 5 . Repair Stations 25 | . . . 6 . . . 3 . 4 8 . 4 . Recycling Units 3 | . 1 . 1 . . . . . 1 . . . . Scanalyzers 19 | . . . 3 . . . . . 10 . . 6 . Garrison Access 7 | . . . . . . . 2 . . 1 . 4 . Terminal Hacks 55 | . 7 . 10 1 2 1 4 . 12 6 . 12 . Record 1 | . . . . . 1 . . . . . . . . Robot Analysis 7 | . 2 . 1 . . 1 . . 2 . . 1 . Prototype ID Bank 9 | . 3 . 1 . . . 1 . 2 1 . 1 . Open Door 2 | . . . . 1 . . . . . 1 . . . Emergency Access Points 2 | . . . . . . . . . 1 . . 1 . Terminal Index 2 | . . . . . . . . . 1 . . 1 . Alert Level 3 | . . . 2 . . . 1 . . . . . . Unreport Threat 9 | . . . 2 . . . 1 . 3 1 . 2 . Locate Traps 4 | . 1 . 1 . . . . . 1 . . 1 . Recall Investigation 1 | . . . . . . . . . . . . 1 . Recall Reinforcements 1 | . . . 1 . . . . . . . . . . Hauler Manifests 4 | . . . 1 . . . 1 . . 1 . 1 . Zone Layout 9 | . 1 . 1 . . . . . 2 2 . 3 . EX-Prototype ID Bank 1 | . . . . . 1 . . . . . . . . Fabricator Hacks 1 | . . . . . . . . . . . . 1 . Build 1 | . . . . . . . . . . . . 1 . Repair Station Hacks 16 | . . . 4 . . . 2 . 3 6 . 1 . Scan Component 9 | . . . 2 . . . 1 . 2 3 . 1 . Repair 7 | . . . 2 . . . 1 . 1 3 . . . Recycling Unit Hacks 3 | . 1 . 1 . . . . . 1 . . . . Report Inventory 3 | . 1 . 1 . . . . . 1 . . . . Scanalyzer 18 | . . . 2 . . . . . 10 . . 6 . Insert Component 8 | . . . 1 . . . . . 4 . . 3 . Analyze 10 | . . . 1 . . . . . 6 . . 3 . Garrison Access Hacks 6 | . . . . . . . 1 . . 1 . 4 . Unlock Access 2 | . . . . . . . 1 . . 1 . . . Seal Access 4 | . . . . . . . . . . . . 4 . Unauthorized Hacks 22 | . 1 . 6 . . . 1 . 4 3 . 7 . Terminals 21 | . 1 . 6 . . . 1 . 4 3 . 6 . Track 3 | . . . 1 . . . . . . 1 . 1 . Assimilate 3 | . . . 2 . . . . . 1 . . . . Botnet 13 | . . . 2 . . . 1 . 3 2 . 5 . Operators 2 | . 1 . 1 . . . . . . . . . . Fabricators 1 | . . . . . . . . . . . . 1 . Siphon 1 | . . . . . . . . . . . . 1 . Repair Stations . | . . . . . . . . . . . . . . Recycling Units . | . . . . . . . . . . . . . . Scanalyzers . | . . . . . . . . . . . . . . Garrison Access . | . . . . . . . . . . . . . . Data Cores Recovered 1 | . . . . . . . . . . 1 . . . Used . | . . . . . . . . . . . . . . Hacking Detections 58 | . 7 . 11 . . 1 4 . 15 5 . 15 . Full Trace Events 6 | . . . 2 . . . . . 4 . . . . Feedback Events 1 | . . . . . . . . . 1 . . . . Corruption 1 | . . . . . . . . . 1 . . . . Feedback Blocked . | . . . . . . . . . . . . . . Robot Schematics Acquired . | . . . . . . . . . . . . . . Robots Built 3 | . . . . . . . . . . . . 3 . Matter 252 | . . . . . . . . . . . . 252 . Time 134 | . . . . . . . . . . . . 134 . Total Robot Build Rating 12 | . . . . . . . . . . . . 12 . Part Schematics Acquired 8 | . . . 1 . . . . . 4 . . 3 . Parts Built . | . . . . . . . . . . . . . . Matter . | . . . . . . . . . . . . . . Time . | . . . . . . . . . . . . . . Total Part Build Rating . | . . . . . . . . . . . . . . Parts Repaired 7 | . . . 2 . . . 1 . 1 3 . . . Time 272 | . . . 64 . . . 26 . 80 102 . . . Parts Recycled . | . . . . . . . . . . . . . . Recycled Matter . | . . . . . . . . . . . . . . Retrieved Matter . | . . . . . . . . . . . . . . Retrieved Components . | . . . . . . . . . . . . . . Parts Scanalyzed 8 | . . . 1 . . . . . 4 . . 3 . Part Schematics Acquired 8 | . . . 1 . . . . . 4 . . 3 . Parts Damaged 1 | . . . . . . . . . . . . 1 . Bothacking | -11 -10 -10 -9 -9 -9 -8 -8 -8 -8 -8 -8 -7 -7 ------------ Run | Scr Mat Min Mat Min Exi Min Mat Gar Mat Sto Gar Fac Was Used RIF Installer 2 | . . . . . . . . 1 . . 1 . . Structural Interface 1 | . . . . . . . . . . . 1 . . Robots Hacked . | . . . . . . . . . . . . . . Non-combat . | . . . . . . . . . . . . . . Combat . | . . . . . . . . . . . . . . Robot Hacks Applied . | . . . . . . . . . . . . . . Relay Couplers Released . | . . . . . . . . . . . . . . Attached 1 | . . . . . . . . . . . 1 . . Robots Rewired . | . . . . . . . . . . . . . . Allies Hacked . | . . . . . . . . . . . . . . Hacks Repelled . | . . . . . . . . . . . . . . Allies | -11 -10 -10 -9 -9 -9 -8 -8 -8 -8 -8 -8 -7 -7 -------- Run | Scr Mat Min Mat Min Exi Min Mat Gar Mat Sto Gar Fac Was Total Allies 22 | . . . 1 5 . . . . 1 12 . 3 . Largest Group 10 | . . . 1 4 4 4 . . 1 10 3 3 . Highest-Rated Group 173 | . . . 10 57 50 50 . . 10 173 61 90 . Highest-Rated Ally 31 | . . . 10 31 16 16 . . 10 31 29 30 . Total Orders . | . . . . . . . . . . . . . . Ally Attacks 157 | . . . . 13 . 7 . . . 112 11 14 . Total Damage 2241 | . . . . 183 . 85 . . . 1575 155 243 . Kills 28 | . . . . 2 . . . . . 21 3 2 . Allies Corrupted 1 | . . . . . . . . . . . . 1 . Allies Melted . | . . . . . . . . . . . . . . Intel | -11 -10 -10 -9 -9 -9 -8 -8 -8 -8 -8 -8 -7 -7 ------- Run | Scr Mat Min Mat Min Exi Min Mat Gar Mat Sto Gar Fac Was Robot Analysis Total 7 | . 2 . 1 . . 1 . . 2 . . 1 . Derelict Logs Recovered 3 | . . 1 . 2 . . . . . . . . . Drone Launches . | . . . . . . . . . . . . . . Drone Recoveries . | . . . . . . . . . . . . . . Exploration | -11 -10 -10 -9 -9 -9 -8 -8 -8 -8 -8 -8 -7 -7 ------------- Run | Scr Mat Min Mat Min Exi Min Mat Gar Mat Sto Gar Fac Was Turns Passed 27458 | 8 1216 1063 3196 1206 618 1539 772 878 5274 3870 508 7187 123 Spaces Moved 11452 | 2 687 718 1536 635 337 500 302 312 2018 891 223 3235 56 Core 9 | . . . . . . . . . . . . . 9 Treads 7717 | . 506 97 1496 635 337 500 273 312 1837 891 223 610 . Legs 18 | 2 16 . . . . . . . . . . . . Wheels 3708 | . 165 621 40 . . . 29 . 181 . . 2625 47 Hover . | . . . . . . . . . . . . . . Flight . | . . . . . . . . . . . . . . Fastest Speed 50 | 120 120 120 120 180 180 180 140 175 130 173 178 140 50 Average Speed 168 | 120 153 128 174 180 180 180 186 191 184 177 179 154 149 Slowest Speed 1650 | 120 180 200 200 180 180 180 245 200 290 178 183 270 1650 Overloaded Moves . | . . . . . . . . . . . . . . Propulsion Burnouts . | . . . . . . . . . . . . . . Robots Hopped . | . . . . . . . . . . . . . . Cave-ins Triggered . | . . . . . . . . . . . . . . Exploration Rate (%) 69 | 1 97 98 98 92 71 99 27 54 98 74 58 71 28 Regions Visited 13 Branch Regions 5 Pre-discovered Areas 2 | . . . . 1 1 . . . . . . . . Known Exits Taken 2 | . . . . . . . 1 . . 1 . . . Unknown Exits Taken 8 | 1 1 1 1 1 1 1 . . 1 . . . . Scrap Searched 4 | . . 1 . 2 . 1 . . . . . . . Spaces Dug 42 | . . 2 . . . . . . . . . 40 . Terrain Destroyed 283 | . 2 53 65 . . . . 9 2 . 27 59 66 Melee 30 | . . 2 . . . . . . . . . 28 . Projectile 8 | . . . 4 . . . . . 2 . . 2 . AOE 245 | . 2 51 61 . . . . 9 . . 27 29 66 Terrain Rammed . | . . . . . . . . . . . . . . Walls Destroyed . | . . . . . . . . . . . . . . Machines Disabled . | . . . . . . . . . . . . . . Actions | -11 -10 -10 -9 -9 -9 -8 -8 -8 -8 -8 -8 -7 -7 --------- Run | Scr Mat Min Mat Min Exi Min Mat Gar Mat Sto Gar Fac Was Total 18591 | 3 807 779 1908 660 350 1039 457 494 3368 3105 299 5247 75 Wait 6133 | . 54 1 226 . 2 478 96 118 1182 2144 46 1781 5 Move 11438 | 1 686 717 1535 634 336 499 301 310 2017 890 221 3235 56 Hop . | . . . . . . . . . . . . . . Pick Up 99 | . 20 2 19 . 2 2 10 3 11 6 1 22 1 Fast Attach 29 | . 1 1 8 . . . 1 1 8 2 2 5 . Attach 41 | . 1 2 4 . . 6 5 4 8 3 1 6 1 Detach 8 | . 1 . 1 . 2 . 2 . . 1 1 . . Swap 138 | . 6 10 15 1 4 . 5 2 14 11 4 62 4 Drop 106 | . 13 2 18 1 4 . 9 . 23 6 2 28 . Fire 481 | 2 23 23 73 16 . 48 28 46 98 34 17 66 7 Melee 60 | . . 19 . . . . . . . 3 . 38 . Ram 7 | . 1 2 1 . . . . . 1 . . 1 1 Kick . | . . . . . . . . . . . . . . Crush 33 | . 1 . 8 8 . 6 . . 6 3 . 1 . Escape Stasis 18 | . . . . . . . . 10 . 2 4 2 . Rewire . | . . . . . . . . . . . . . . Trap . | . . . . . . . . . . . . . . Miscellaneous . | . . . . . . . . . . . . . . Route ------- -11/Scrapyard -10/Materials (discovered 4 exits: *Mat x3 / [*Min]) -10/Mines (discovered 2 exits: *Mat x2) -9/Materials (discovered 5 exits: *Mat x3 / *Min x2) -9/Mines (discovered 3 exits: *Mat x2 / *Exi) -9/Exiles -8/Mines (discovered 2 exits: *Mat x2) -8/Materials (discovered 2 exits: *Fac / Gar) -8/Garrison (discovered 2 exits: *Mat x2) -8/Materials (discovered 5 exits: *Fac x3 / *Sto x2) -8/Storage (discovered 2 exits: Rec / Gar) -8/Garrison (discovered 2 exits: *Fac x2) -7/Factory (discovered 5 exits: *Fac x3 / *Low x2) -7/Waste History --------- Turn | Location | Event 7 | -11/Scrapyard | Discovered new exit (range 1) 9 | -11/Scrapyard | Entered Materials 239 | -10/Materials | Discovered new exit (range 14) 305 | -10/Materials | Build established: Mutant 555 | -10/Materials | Discovered new exit (range 14) 791 | -10/Materials | Discovered new exit (range 10) 1063 | -10/Materials | Central database locked down 1071 | -10/Materials | Discovered new exit (range 16) 1225 | -10/Materials | Entered Mines 1252 | -10/Mines | Discovered new exit (range 15) 1268 | -10/Mines | Met a Derelict bent on vengeance 1382 | -10/Mines | Received a Rocket Launcher from a helpful Derelict 1768 | -10/Mines | Found a damaged Exp. Sensor Array with a note attached 1771 | -10/Mines | Found Prototype Device 1804 | -10/Mines | Discovered new exit (range 7) 1965 | -10/Mines | Excavation squad dispatched 1965 | -10/Mines | A large section of the Mines collapsed 2288 | -10/Mines | Entered Materials 2288 | -9/Materials | Evolved 2 slots: Propulsion x1, Utility x1 2401 | -9/Materials | Lost 4 parts (2n2w) 3097 | -9/Materials | Build established: Scavenger-Mutant 3142 | -9/Materials | Repaired Hvy. Hammer 3309 | -9/Materials | Discovered new exit (range 15) 3576 | -9/Materials | Discovered new exit (range 18) 3678 | -9/Materials | Build established: Hauler-Mutant 3966 | -9/Materials | Destroyed 7 combat bots 3973 | -9/Materials | Discovered new exit (range 8) 4201 | -9/Materials | Identified Exp. Sensor Array 4521 | -9/Materials | Discovered new exit (range 6) 4832 | -9/Materials | Discovered new exit (range 16) 5002 | -9/Materials | Repaired Hvy. Assault Rifle 5219 | -9/Materials | Central database locked down 5484 | -9/Materials | Entered Mines 5484 | -9/Mines | Accompanied by 1 ally 5497 | -9/Mines | Discovered new exit (range 11) 5672 | -9/Mines | Deemed a non-threat by the Exiles lab entrance 5674 | -9/Mines | Discovered new exit (range 5) 5769 | -9/Mines | Discovered new exit (range 11) 5915 | -9/Mines | Learned location of Zion (-6) 6070 | -9/Mines | Assisted by bots powering up and referring to "LRC-V3" 6525 | -9/Mines | Found the Drone Emporium 6580 | -9/Mines | Learned Materials emergency access door positions 6690 | -9/Mines | Entered Exiles 6690 | -9/Exiles | Accompanied by 4 allies 6736 | -9/Exiles | Met 8R-AWN 6766 | -9/Exiles | Met EX-HEX 6877 | -9/Exiles | Met EX-DEC 7040 | -9/Exiles | Met EX-BIN 7062 | -9/Exiles | Aligned with FarCom system 7064 | -9/Exiles | Given EX-Vault access code 7107 | -9/Exiles | Opened EX-Vault 7120 | -9/Exiles | Found AWS/Autocannon 7130 | -9/Exiles | Found Cloak of Protection 7167 | -9/Exiles | Warned to stay clear of 0b10 Research branches 7183 | -9/Exiles | Exiles lab attacked by MAIN.C 7282 | -9/Exiles | Discovered new exit (range 14) 7308 | -9/Exiles | Stole two prototypes: AWS/Autocannon, Cloak of Protection 7308 | -9/Exiles | Entered Mines 7308 | -8/Mines | Accompanied by 4 allies 8280 | -8/Mines | Core integrity fell below 50% 8308 | -8/Mines | Discovered new exit (range 9) 8819 | -8/Mines | Discovered new exit (range 10) 8847 | -8/Mines | Entered Materials 8847 | -8/Materials | Evolved 2 slots: Utility x1, Weapon x1 8913 | -8/Materials | Repaired Lgt. Treads 9179 | -8/Materials | Build established: Hauler-Skirmisher 9309 | -8/Materials | Found Powered Armor 9537 | -8/Materials | Discovered new exit (range 15) 9617 | -8/Materials | Identified exit to Garrison 9619 | -8/Materials | Entered Garrison 9760 | -8/Garrison | Triggered checkpoint 10028 | -8/Garrison | Lost 4 parts (1p1u2w) 10209 | -8/Garrison | Discovered new exit (range 15) 10360 | -8/Garrison | Triggered checkpoint 10445 | -8/Garrison | Discovered new exit (range 15) 10487 | -8/Garrison | Installed Relay Interface Framework 10497 | -8/Garrison | Entered Materials 10733 | -8/Materials | Discovered new exit (range 16) 11487 | -8/Materials | Discovered new exit (range 16) 13046 | -8/Materials | Discovered new exit (range 9) 13471 | -8/Materials | Repaired Exp. Sensor Array 13906 | -8/Materials | Core integrity fell below 50% 14092 | -8/Materials | Discovered new exit (range 15) 14281 | -8/Materials | Discovered new exit (range 15) 15771 | -8/Materials | Entered Storage 15772 | -8/Storage | Identified exit to Recycling 15848 | -8/Storage | Met a pair of Derelict thieves 15980 | -8/Storage | Destroyed 7 combat bots 17388 | -8/Storage | Assisted by bots powering up and referring to "LRC-V3" 17675 | -8/Storage | Build established: Commander-Skirmisher 18402 | -8/Storage | Repaired Hvy. Assault Rifle 18435 | -8/Storage | Repaired Hvy. Assault Rifle 18475 | -8/Storage | Repaired Arm. Treads 19110 | -8/Storage | Build established: Hauler-Skirmisher 19603 | -8/Storage | Identified exit to Garrison 19641 | -8/Storage | Entered Garrison 19641 | -8/Garrison | Accompanied by 3 allies 19844 | -8/Garrison | Triggered checkpoint 19911 | -8/Garrison | Discovered new exit (range 10) 19990 | -8/Garrison | Triggered checkpoint 20086 | -8/Garrison | Triggered checkpoint 20099 | -8/Garrison | Discovered new exit (range 15) 20140 | -8/Garrison | Expanded RIF knowledge: Structural Interface 20149 | -8/Garrison | Entered Factory 20149 | -7/Factory | Evolved 2 slots: Utility x2 20151 | -7/Factory | FarCom data flow suspended 20306 | -7/Factory | Build established: Scavenger-Skirmisher 20311 | -7/Factory | Fabricated L-41 Fighter (x3) 21023 | -7/Factory | Discovered new exit (range 9) 21040 | -7/Factory | Identified exit to Factory 21371 | -7/Factory | Build established: Hauler-Skirmisher 22666 | -7/Factory | Discovered exit to Factory (range 13) 23250 | -7/Factory | Build established: Hauler-Mutant 23655 | -7/Factory | Discovered new exit (range 10) 23669 | -7/Factory | Identified exit to Lower Caves 23789 | -7/Factory | Build established: Hauler-Skirmisher 24314 | -7/Factory | Discovered exit to Lower Caves (range 15) 24740 | -7/Factory | Central database locked down 24960 | -7/Factory | Discovered exit to Factory (range 4) 25861 | -7/Factory | Build established: Hauler-Mutant 27336 | -7/Factory | Sucked down chute 27336 | -7/Factory | Entered Waste 27351 | -7/Waste | EMP discharged 27360 | -7/Waste | Spotted C-40 Crusher 27363 | -7/Waste | Spotted C-40 Crusher 27363 | -7/Waste | Destroyed C-40 Crusher 27371 | -7/Waste | Destroyed C-40 Crusher 27380 | -7/Waste | Spotted C-40 Crusher 27399 | -7/Waste | Spotted C-40 Crusher 27405 | -7/Waste | Crushed by Compactor (1 part destroyed, 1 dropped) 27407 | -7/Waste | Spotted C-40 Crusher 27408 | -7/Waste | Crushed by Compactor (1 part destroyed, 2 dropped) 27415 | -7/Waste | Found Damper Plating 27440 | -7/Waste | Crushed by Compactor (1 part destroyed, 2 dropped) 27441 | -7/Waste | Core integrity fell below 50% 27443 | -7/Waste | Crushed by Compactor (1 part destroyed, 2 dropped) 27446 | -7/Waste | Crushed by Compactor (1 part destroyed) 27451 | -7/Waste | EMP discharged 27451 | -7/Waste | System corruption reached 10% 27455 | -7/Waste | Spotted C-40 Crusher 27456 | -7/Waste | Core integrity fell below 20% 27459 | -7/Waste | Destroyed by C-40 Crusher with Compactor Last Messages --------------- 27441_ Chainsword crushed. 27443_ The unstable cave ceiling collapses. 27443_ System Shield crushed. 27443_ Hcp. Storage Unit crushed. 27443_ Hcp. Matter Pod crushed. 27443_ Dynamic Insulation System crushed. 27444_ The unstable cave ceiling collapses. 27444_ Lrg. Storage Unit crushed. 27446_ Mic. Nuclear Core crushed. 27446_ Relay Coupler [NC] crushed. 27446_ AWS/Autocannon crushed. 27446_ Adv. Signal Interpreter crushed. 27451_ Remote Datajack fried beyond repair. 27451_ System corrupted (+7). 27451_ Flak Gun fried beyond repair. 27451_ Lgt. Treads fried beyond repair. 27451_ Hcp. Matter Pod fried beyond repair. 27452_ Med. Insulated Plating crushed. 27454_ System corrupted: Matter fused (-5). 27459_ Slammed into C-40 Crusher. Map ----- +----------------------------------------------------+ | ?????????????????????????????????????????????????? | | ?????????????????????????????????????????????????? | | ?????????????????????????????????????????????????? | | ?????????????????????????????????????????????????? | | ?????????????????????????????????????????????????? | | ?????????????????????????????????????????????????? | | ???????????????????##########????????????????????? | | ???????????????????# #????????????????????? | | ???????????????????# #????????????????????? | | ???????????????????# #????????????????????? | | ???????????????????# #????????????????????? | | ???????????????????# #????????????????????? | | ???????????????????# #????????????????????? | | ???????????????????# ?????????????????????? | | ???????????????????? ??????????????????????? | | ?????????????????????# #??????????????????????? | | ?????????????????????# #??????????????????????? | | ?????????????????????# #??????????????????????? | | ?????????????????????# #??????????????????????? | | ???????????????????### #??????????????????????? | | ???????????????????# #??????????????????????? | | ???????????????????# #??????????????????????? | | ???????????????????# CC #??????????????????????? | | ?????????????????### !CC #####??????????????????? | | ?????????????##### # /CC #??????????????????? | | ???????####### #!CC@ #??????????????????? | | ???????# ## #!=CC # #??????????????????? | | ???????# ## CC# #??????????????????? | | ???????# ][=] #!![ #??????????????????? | | ???????# ! ?????????????? | | ???????# ! ????????????? | | ???????# ?????????????? | | ???????# ! ????????????? | | ???????# # CC ###### ????????????? | | ???????# ## CC # #???? ???????????? | | ???????# ## # #####????? ????????????? | | ???????############### #??????????????????????? | | ?????????????????????# #??????????????????????? | | ????????????????????? ?????????????????????? | | ????????????????????? ????????????????????? | | ????????????????????? ????????????????????? | | ????????????????????? ????????????????????? | | ??????????????????????? ##?????????????????????? | | ???????????????????????? ????????????????????????? | | ?????????????????????????????????????????????????? | | ?????????????????????????????????????????????????? | | ?????????????????????????????????????????????????? | | ?????????????????????????????????????????????????? | | ?????????????????????????????????????????????????? | | ?????????????????????????????????????????????????? | +----------------------------------------------------+ Best States ------------- Heat Dissipation 34 Energy Generation 18 Energy Capacity 310 Matter Stores 483 Matter Capacity 500 Sight Range 20 Robot Scan Range 30 Terrain Scan Density 10 Jamming Range 8 EM Shielding 2 Armor Coverage 450 Resistance: EM 20 Utility Shielding 33 Evasion (%) 50 Recoil Reduction 3 Offensive Hacking 11 Relay Coupler Types 39 Relay Coupler Value 1 Item Schematics ----------------- Exp. Sensor Array | -9/Materials | Scanalyzed Lrg. Storage Unit | -8/Materials | Scanalyzed Arm. Huge Wheel | -8/Materials | Scanalyzed Mak. Hacking Suite | -8/Materials | Scanalyzed Adv. Treads | -8/Materials | Scanalyzed Chainsword | -7/Factory | Scanalyzed Cld. Airjet | -7/Factory | Scanalyzed Hacking Suite | -7/Factory | Scanalyzed Robot Schematics ------------------ None Fabricated ------------ L-41 Fighter | x3 | -7/Factory | Preloaded Alien Tech Used ----------------- None Achievements -------------- None Challenges ------------ None Game ------ Seed FissionMomentumAxe Manual? 0 Play Time 02:41:07 Cumulative 139.0 hours Start 2020.11.21 @ 16:31:24 End 2020.11.26 @ 12:04:26 Sessions 11 Manual Loads 0 Difficulty Rogue Special Mode Halloween2020/ForbiddenLore Game No. 105 Rogue 105 Adventurer 0 Explorer 0 Win Type - Total 3 Types 3/0/0/0/0/0/0/0/0 Lore% 44 Gallery% 56 Achievement% 44 Wizard Run 0 Options --------- ASCII 1 Keyboard 1 Movement Arrows Keybinds 0 Fullscreen 1 Font 24/Proggy Map View 76x50 Tactical HUD 1 Map Filters NONE Filters NONE Steam 1 RUN: bf096330-298c-447b-9d98-f3493a04d7e9